lending/lending_fUSD_20241214
["ID","MTS","AMOUNT","RATE_DAILY","PERIOD"]
[345323175,1734149451651,-531.47,0.00021198,3]
[345323176,1734149451661,-940.73,0.00021198,3]
[345323177,1734149451669,-500.0,0.00021198,3]
[345323178,1734149451679,-500.0,0.00021198,3]
[345323179,1734149451688,-883.41,0.00021198,3]
[345323180,1734149451699,-500.0,0.00021198,3]
[345323181,1734149451711,-500.0,0.00021198,3]
[345323182,1734149451720,-500.0,0.00021198,3]
[345323183,1734149451729,-500.0,0.00021198,3]
[345323184,1734149451739,-500.0,0.00021198,3]
[345323185,1734149451749,-500.0,0.00021198,3]
[345323186,1734149451759,-579.9,0.00021198,3]
[345323187,1734149451768,-1123.46,0.00021198,3]
[345323188,1734149451779,-500.0,0.00021198,3]
[345323189,1734149451788,-500.0,0.00021198,3]
[345323190,1734149451797,-500.0,0.00021198,3]
[345323191,1734149451806,-500.0,0.00021198,3]
[345323192,1734149451815,-500.0,0.00021198,3]
[345323193,1734149451825,-1179.11,0.00021198,3]
[345323194,1734149451834,-1179.11,0.00021198,3]
[345323195,1734149451843,-500.0,0.00021198,3]
[345323196,1734149451852,-500.98,0.00021198,3]
[345323197,1734149451861,-500.98,0.00021198,3]
[345323198,1734149451871,-995.08,0.00021198,3]
[345323199,1734149451880,-500.0,0.00021198,3]
[345323200,1734149451889,-500.0,0.00021198,3]
[345323201,1734149451898,-500.0,0.00021198,3]
[345323202,1734149451907,-500.0,0.00021198,3]
[345323203,1734149451916,-537.76785681,0.00021198,3]
[345323204,1734149451925,-683.6,0.00021198,3]
[345323205,1734149451935,-683.6,0.00021198,3]
[345323206,1734149451944,-500.0,0.00021198,3]
[345323207,1734149451953,-500.0,0.00021198,3]
[345323208,1734149451962,-500.0,0.00021198,3]
[345323209,1734149451971,-500.0,0.00021198,3]
[345323210,1734149451981,-500.0,0.00021198,3]
[345323211,1734149451990,-500.0,0.00021198,3]
[345323212,1734149451999,-500.0,0.00021198,3]
[345323213,1734149452008,-500.0,0.00021198,3]
[345323214,1734149452017,-500.0,0.00021198,3]
[345323215,1734149452026,-500.0,0.00021198,3]
[345323216,1734149452035,-500.0,0.00021198,3]
[345323217,1734149452044,-500.0,0.00021198,3]
[345323218,1734149452053,-629.26,0.00021198,3]
[345323219,1734149452061,-629.26,0.00021198,3]
[345323220,1734149452078,-875.63,0.00021198,3]
[345323221,1734149452087,-500.0,0.00021198,3]
[345323222,1734149452096,-207.80132391,0.00021198,3]
[345323223,1734149452105,-500.0,0.00021198,3]
[345323224,1734149452115,-500.0,0.00021198,3]
[345323225,1734149452124,-500.0,0.00021198,3]
[345323226,1734149452133,-500.0,0.00021198,3]
[345323227,1734149452140,-1000.0,0.00021198,3]
[345323228,1734149452149,-500.0,0.00021198,3]
[345323229,1734149452159,-500.0,0.00021198,3]
[345323230,1734149452169,-500.0,0.00021198,3]
[345323231,1734149452178,-500.0,0.00021198,3]
[345323232,1734149452188,-500.0,0.00021198,3]
[345323233,1734149452198,-1741.33,0.00021198,3]
[345323234,1734149452207,-500.0,0.00021198,3]
[345323235,1734149452217,-532.64,0.00021198,3]
[345323236,1734149452226,-500.0,0.00021198,3]
[345323237,1734149452235,-500.0,0.00021198,3]
[345323238,1734149452246,-500.0,0.00021198,3]
[345323239,1734149452255,-500.0,0.00021198,3]
[345323240,1734149452265,-643.24343677,0.00021198,3]
[345323241,1734149452274,-500.0,0.00021198,3]
[345323242,1734149452283,-356.63470075,0.00021198,3]
[345323243,1734149452292,-500.0,0.00021198,3]
[345323244,1734149452301,-268.31975771,0.00021198,3]
[345323245,1734149452311,-500.0,0.00021198,3]
[345323246,1734149452322,-500.0,0.00021198,3]
[345323247,1734149452331,-995.64,0.00021198,2]
[345323248,1734149452340,-150.0,0.00021199,2]
[345323249,1734149452350,-500.0,0.00021199,3]
[345323250,1734149452359,-500.0,0.00021199,3]
[345323251,1734149452368,-500.0,0.00021199,3]
[345323252,1734149452377,-500.0,0.00021199,3]
[345323253,1734149452387,-500.0,0.00021199,3]
[345323254,1734149452396,-500.0,0.00021199,3]
[345323255,1734149452406,-500.0,0.00021199,3]
[345323256,1734149452414,-277.2,0.00021199,3]
[345323257,1734149452424,-500.0,0.00021199,3]
[345323258,1734149452434,-523.7727576,0.00021199,3]
[345323259,1734149452443,-500.0,0.00021199,3]
[345323260,1734149452453,-204.6,0.00021199,3]
[345323261,1734149452462,-500.0,0.00021199,3]
[345323262,1734149452471,-500.0,0.00021199,3]
[345323263,1734149452480,-248.36,0.00021199,3]
[345323264,1734149452489,-500.0,0.00021199,3]
[345323265,1734149452498,-500.0,0.00021199,3]
[345323266,1734149452507,-500.0,0.00021199,3]
[345323267,1734149452517,-361.35898505,0.00021199,3]
[345323268,1734149452526,-42820.05788317,0.000212,30]
[345323269,1734149452535,-505.22,0.000212,2]
[345323270,1734149452544,-150.0,0.000212,2]
[345323271,1734149452553,-502.0,0.000212,9]
[345323272,1734149452563,-617.0,0.000212,2]
[345323273,1734149452573,-559.4506309,0.00021231,3]
[345323274,1734149452582,-990.06,0.00021231,3]
[345323275,1734149452591,-500.0,0.00021231,3]
[345323276,1734149452600,-1030.75,0.00021231,3]
[345323277,1734149452608,-500.0,0.00021231,3]
[345323278,1734149452617,-500.0,0.00021231,3]
[345323279,1734149452626,-653.52,0.00021231,3]
[345323280,1734149452634,-500.0,0.00021231,3]
[345323281,1734149452643,-540.54,0.00021231,3]
[345323282,1734149452652,-507.26,0.00021231,3]
[345323283,1734149452661,-566.98,0.00021231,3]
[345323284,1734149452670,-1000.0,0.00021231,3]
[345323285,1734149452679,-762.23,0.00021231,3]
[345323286,1734149452688,-500.0,0.00021231,3]
[345323287,1734149452700,-666.74,0.00021231,3]
[345323288,1734149452711,-987.07,0.00021231,3]
[345323289,1734149452719,-839.23,0.00021231,3]
[345323290,1734149452728,-717.55,0.00021231,2]
[345323291,1734149452739,-500.0,0.00021231,3]
[345323292,1734149452750,-524.88,0.00021231,3]
[345323293,1734149452759,-711.24,0.00021231,3]
[345323294,1734149452768,-521.88,0.00021231,3]
[345323295,1734149452777,-712.31,0.00021231,3]
[345323296,1734149452786,-500.0,0.00021231,3]
[345323297,1734149452796,-500.0,0.00021231,3]
[345323298,1734149452805,-500.0,0.00021231,3]
[345323299,1734149452817,-500.0,0.00021231,3]
[345323300,1734149452827,-500.0,0.00021231,3]
[345323301,1734149452836,-500.0,0.00021231,3]
[345323302,1734149452846,-500.0,0.00021231,3]
[345323303,1734149452856,-500.0,0.00021231,3]
[345323304,1734149452866,-500.0,0.00021231,3]
[345323305,1734149452875,-542.17,0.00021231,3]
[345323306,1734149452884,-362.70664475,0.00021231,3]
[345323307,1734149452894,-500.0,0.00021231,3]
[345323308,1734149452903,-500.0,0.00021231,3]
[345323309,1734149452912,-500.0,0.00021231,3]
[345323310,1734149452922,-150.81,0.00021231,3]
[345323311,1734149452931,-500.0,0.00021231,3]
[345323312,1734149452940,-500.0,0.00021231,3]
[345323313,1734149452949,-500.0,0.00021231,3]
[345323314,1734149452959,-1089.07,0.00021231,3]
[345323315,1734149452968,-500.0,0.00021231,3]
[345323316,1734149452979,-500.0,0.00021232,3]
[345323317,1734149452989,-500.0,0.00021232,3]
[345323318,1734149452999,-500.0,0.00021232,3]
[345323319,1734149453008,-290.94,0.00021232,3]
[345323320,1734149453018,-500.0,0.00021232,3]
[345323321,1734149453027,-500.0,0.00021232,3]
[345323322,1734149453036,-500.0,0.00021232,3]
[345323323,1734149453045,-467.46921983,0.00021232,3]
[345323324,1734149453054,-1014.35,0.00021232,3]
[345323325,1734149453063,-500.0,0.00021232,3]
[345323326,1734149453074,-500.0,0.00021232,3]
[345323327,1734149453083,-500.0,0.00021232,3]
[345323328,1734149453092,-500.0,0.00021232,3]
[345323329,1734149453101,-500.0,0.00021232,3]
[345323330,1734149453111,-25828.0,0.00021233,2]
[345323331,1734149453120,-12828.0,0.00021233,2]
[345323332,1734149453130,-1000.0,0.00021239,2]
[345323333,1734149453139,-601.0,0.0002124,2]
[345323334,1734149453149,-212.0,0.0002124,2]
[345323335,1734149453158,-211.0,0.0002124,2]
[345323336,1734149453167,-201.0,0.0002124,2]
[345323337,1734149453177,-205.0,0.0002124,2]
[345323338,1734149453186,-206.0,0.0002124,2]
[345323339,1734149453196,-201.0,0.0002124,2]
[345323340,1734149453206,-205.0,0.0002124,2]
[345323341,1734149453215,-211.0,0.0002124,2]
[345323342,1734149453225,-201.0,0.0002124,2]
[345323343,1734149453234,-206.0,0.0002124,2]
[345323344,1734149453243,-257.0,0.0002124,4]
[345323345,1734149453253,-500.0,0.00021244,3]
[345323346,1734149453262,-350.78,0.00021244,3]
[345323347,1734149453271,-500.0,0.00021244,3]
[345323348,1734149453280,-500.0,0.00021244,3]
[345323349,1734149453290,-188.05,0.00021244,3]
[345323350,1734149453299,-500.0,0.00021244,3]
[345323351,1734149453309,-500.0,0.00021244,3]
[345323352,1734149453319,-500.0,0.00021244,3]
[345323353,1734149453329,-500.0,0.00021244,3]
[345323354,1734149453339,-510.88,0.00021244,3]
[345323355,1734149453348,-500.0,0.00021244,3]
[345323356,1734149453357,-500.0,0.00021244,3]
[345323357,1734149453366,-500.0,0.00021245,3]
[345323358,1734149453376,-503.23834425,0.00021245,3]
[345323359,1734149453385,-500.0,0.00021245,3]
[345323360,1734149453394,-500.0,0.00021245,3]
[345323361,1734149453403,-500.0,0.00021245,3]
[345323362,1734149453413,-500.0,0.00021245,3]
[345323363,1734149453422,-532.44,0.00021245,3]
[345323364,1734149453431,-500.0,0.00021245,3]
[345323365,1734149453440,-500.0,0.00021245,3]
[345323366,1734149453449,-500.0,0.00021245,3]
[345323367,1734149453459,-500.0,0.00021245,3]
[345323368,1734149453468,-500.0,0.00021245,3]
[345323369,1734149453478,-464.15742748,0.00021245,3]
[345323370,1734149453487,-500.0,0.00021245,3]
[345323371,1734149453496,-500.0,0.00021245,3]
[345323372,1734149453506,-500.0,0.00021245,3]
[345323373,1734149453515,-409.28641627,0.00021245,3]
[345323374,1734149453524,-675.42,0.00021245,3]
[345323375,1734149453534,-500.0,0.00021245,3]
[345323376,1734149453543,-478.92,0.00021245,3]
[345323377,1734149453552,-500.0,0.00021245,3]
[345323378,1734149453562,-500.0,0.00021245,3]
[345323379,1734149453573,-500.0,0.00021245,3]
[345323380,1734149453582,-602.0,0.00021245,3]
[345323381,1734149453591,-500.0,0.00021245,3]
[345323382,1734149453601,-500.0,0.00021245,3]
[345323383,1734149453611,-500.0,0.00021245,3]
[345323384,1734149453620,-500.0,0.00021245,3]
[345323385,1734149453629,-615.16,0.00021245,3]
[345323386,1734149453639,-500.0,0.00021245,3]
[345323387,1734149453648,-500.0,0.00021245,3]
[345323388,1734149453658,-619.18479598,0.00021245,3]
[345323389,1734149453667,-500.0,0.00021245,3]
[345323390,1734149453676,-615.58,0.00021245,3]
[345323391,1734149453686,-797.45,0.00021245,3]
[345323392,1734149453697,-500.0,0.00021245,3]
[345323393,1734149453711,-500.0,0.00021245,3]
[345323394,1734149453720,-896.03,0.00021245,3]
[345323395,1734149453730,-1194.16,0.00021245,3]
[345323396,1734149453739,-500.0,0.00021245,3]
[345323397,1734149453750,-541.75,0.00021245,3]
[345323398,1734149453759,-554.01,0.00021245,3]
[345323399,1734149453769,-500.0,0.00021245,3]
[345323400,1734149453780,-500.0,0.00021245,3]
[345323401,1734149453790,-561.86,0.00021245,3]
[345323402,1734149453799,-534.03,0.00021245,3]
[345323403,1734149453809,-500.0,0.00021245,3]
[345323404,1734149453819,-500.0,0.00021245,3]
[345323405,1734149453830,-850.03,0.00021245,3]
[345323406,1734149453839,-500.0,0.00021245,3]
[345323407,1734149453848,-501.14,0.00021245,3]
[345323408,1734149453858,-532.739071,0.00021245,3]
[345323409,1734149453867,-500.0,0.00021245,3]
[345323410,1734149453878,-500.0,0.00021245,3]
[345323411,1734149453888,-500.0,0.00021245,3]
[345323412,1734149453898,-500.0,0.00021245,3]
[345323413,1734149453908,-802.18,0.00021245,3]
[345323414,1734149453919,-500.0,0.00021245,3]
[345323415,1734149453929,-983.38,0.00021245,3]
[345323416,1734149453939,-500.0,0.00021245,3]
[345323417,1734149453950,-224.03263353,0.00021245,3]
[345323418,1734149453959,-444.121413,0.00021245,9]
[345323419,1734149453969,-444.121413,0.00021245,8]
[345323420,1734149453978,-500.0,0.00021245,3]
[345323421,1734149453988,-444.121413,0.00021245,7]
[345323422,1734149453998,-444.121413,0.00021245,6]
[345323423,1734149454007,-444.121413,0.00021245,5]
[345323424,1734149454017,-444.121413,0.00021245,4]
[345323425,1734149454027,-444.121413,0.00021245,3]
[345323426,1734149454039,-774.9,0.00021245,3]
[345323427,1734149454049,-444.121413,0.00021245,2]
[345323428,1734149454059,-500.0,0.00021245,3]
[345323429,1734149454069,-500.0,0.00021245,3]
[345323430,1734149454079,-500.0,0.00021245,3]
[345323431,1734149454089,-500.0,0.00021245,3]
[345323432,1734149454098,-500.0,0.00021245,3]
[345323433,1734149454108,-500.0,0.00021245,3]
[345323434,1734149454118,-500.0,0.00021245,3]
[345323435,1734149454128,-531.47,0.00021245,3]
[345323436,1734149454138,-940.73,0.00021245,3]
[345323437,1734149454147,-495.14143843,0.00021245,3]
[345323438,1734149454157,-883.41,0.00021245,3]
[345323439,1734149454167,-500.0,0.00021245,3]
[345323440,1734149454178,-500.0,0.00021245,3]
[345323441,1734149454187,-500.0,0.00021245,3]
[345323442,1734149454197,-500.0,0.00021245,3]
[345323443,1734149454206,-579.9,0.00021245,3]
[345323444,1734149454216,-1123.46,0.00021245,3]
[345323445,1734149454226,-500.0,0.00021245,3]
[345323446,1734149454235,-500.0,0.00021245,3]
[345323447,1734149454245,-596.9,0.00021245,3]
[345323448,1734149454255,-500.0,0.00021245,3]
[345323449,1734149454264,-1179.11,0.00021245,3]
[345323450,1734149454274,-500.0,0.00021245,3]
[345323451,1734149454283,-500.98,0.00021245,3]
[345323452,1734149454293,-995.08,0.00021245,3]
[345323453,1734149454303,-500.0,0.00021245,3]
[345323454,1734149454312,-500.0,0.00021245,3]
[345323455,1734149454323,-500.0,0.00021245,3]
[345323456,1734149454332,-683.6,0.00021245,3]
[345323457,1734149454342,-500.0,0.00021245,3]
[345323458,1734149454351,-500.0,0.00021245,3]
[345323459,1734149454361,-500.0,0.00021245,3]
[345323460,1734149454370,-500.0,0.00021245,3]
[345323461,1734149454380,-500.0,0.00021245,3]
[345323462,1734149454389,-500.0,0.00021245,3]
[345323463,1734149454398,-500.0,0.00021245,3]
[345323464,1734149454408,-500.0,0.00021245,3]
[345323465,1734149454417,-500.0,0.00021245,3]
[345323466,1734149454427,-629.26,0.00021245,3]
[345323467,1734149454436,-875.63,0.00021245,3]
[345323468,1734149454446,-500.0,0.00021245,3]
[345323469,1734149454456,-161.13,0.00021245,3]
[345323470,1734149454465,-500.0,0.00021245,3]
[345323471,1734149454475,-500.0,0.00021245,3]
[345323472,1734149454484,-500.0,0.00021245,3]
[345323473,1734149454494,-1000.0,0.00021245,3]
[345323474,1734149454503,-512.92638136,0.00021245,3]
[345323475,1734149454513,-500.0,0.00021245,3]
[345323476,1734149454524,-500.0,0.00021245,3]
[345323477,1734149454535,-500.0,0.00021245,3]
[345323478,1734149454546,-500.0,0.00021245,3]
[345323479,1734149454557,-1741.33,0.00021245,3]
[345323480,1734149454568,-500.0,0.00021245,3]
[345323481,1734149454578,-532.64,0.00021245,3]
[345323482,1734149454587,-511.33271089,0.00021245,3]
[345323483,1734149454598,-500.0,0.00021245,3]
[345323484,1734149454608,-500.0,0.00021245,3]
[345323485,1734149454617,-500.0,0.00021245,3]
[345323486,1734149454626,-553.09905641,0.00021245,3]
[345323487,1734149454636,-454.29292249,0.00021245,3]
[345323488,1734149454647,-500.0,0.00021245,3]
[345323489,1734149454657,-500.0,0.00021245,3]
[345323490,1734149454667,-990.06,0.00021246,3]
[345323491,1734149454677,-990.06,0.00021246,3]
[345323492,1734149454687,-500.0,0.00021246,3]
[345323493,1734149454697,-500.0,0.00021246,3]
[345323494,1734149454711,-1030.75,0.00021246,3]
[345323495,1734149454720,-1030.75,0.00021246,3]
[345323496,1734149454730,-500.0,0.00021246,3]
[345323497,1734149454742,-474.47666482,0.00021246,3]
[345323498,1734149454752,-500.0,0.00021246,3]
[345323499,1734149454763,-500.0,0.00021246,3]
[345323500,1734149454772,-500.0,0.00021246,3]
[345323501,1734149454783,-500.0,0.00021246,3]
[345323502,1734149454794,-500.0,0.00021246,3]
[345323503,1734149454804,-653.52,0.00021246,3]
[345323504,1734149454814,-653.52,0.00021246,3]
[345323505,1734149454826,-500.0,0.00021246,3]
[345323506,1734149454836,-500.0,0.00021246,3]
[345323507,1734149454846,-540.54,0.00021246,3]
[345323508,1734149454857,-540.54,0.00021246,3]
[345323509,1734149455007,-507.26,0.00021246,3]
[345323510,1734149455017,-507.26,0.00021246,3]
[345323511,1734149455026,-500.0,0.00021246,3]
[345323512,1734149455035,-566.98,0.00021246,3]
[345323513,1734149455044,-566.98,0.00021246,3]
[345323514,1734149455054,-1000.0,0.00021246,3]
[345323515,1734149455063,-1000.0,0.00021246,3]
[345323516,1734149455073,-762.23,0.00021246,3]
[345323517,1734149455083,-762.23,0.00021246,3]
[345323518,1734149455092,-500.0,0.00021246,3]
[345323519,1734149455102,-500.0,0.00021246,3]
[345323520,1734149455112,-500.0,0.00021246,3]
[345323521,1734149455121,-666.74,0.00021246,3]
[345323522,1734149455131,-666.74,0.00021246,3]
[345323523,1734149455140,-987.07,0.00021246,3]
[345323524,1734149455150,-987.07,0.00021246,3]
[345323525,1734149455159,-500.0,0.00021246,3]
[345323526,1734149455168,-500.0,0.00021246,3]
[345323527,1734149455177,-500.0,0.00021246,3]
[345323528,1734149455187,-376.94,0.00021246,3]
[345323529,1734149455197,-839.23,0.00021246,3]
[345323530,1734149455207,-839.23,0.00021246,3]
[345323531,1734149455217,-500.0,0.00021246,3]
[345323532,1734149455226,-717.55,0.00021246,2]
[345323533,1734149455235,-717.55,0.00021246,2]
[345323534,1734149455244,-500.0,0.00021246,3]
[345323535,1734149455254,-500.0,0.00021246,3]
[345323536,1734149455263,-527.92,0.00021246,3]
[345323537,1734149455272,-524.88,0.00021246,3]
[345323538,1734149455281,-524.88,0.00021246,3]
[345323539,1734149455290,-711.24,0.00021246,3]
[345323540,1734149455299,-711.24,0.00021246,3]
[345323541,1734149455307,-500.0,0.00021246,3]
[345323542,1734149455316,-521.88,0.00021246,3]
[345323543,1734149455326,-521.88,0.00021246,3]
[345323544,1734149455340,-712.31,0.00021246,3]
[345323545,1734149455349,-712.31,0.00021246,3]
[345323546,1734149455358,-444.121413,0.00021246,2]
[345323547,1734149455367,-444.121413,0.00021246,3]
[345323548,1734149455376,-444.121413,0.00021246,4]
[345323549,1734149455385,-444.121413,0.00021246,5]
[345323550,1734149455394,-444.121413,0.00021246,6]
[345323551,1734149455404,-444.121413,0.00021246,7]
[345323552,1734149455413,-444.121413,0.00021246,8]
[345323553,1734149455423,-444.121413,0.00021246,9]
[345323554,1734149455432,-500.0,0.00021246,3]
[345323555,1734149455442,-500.0,0.00021246,3]
[345323556,1734149455451,-630.92423317,0.00021246,3]
[345323557,1734149455460,-1014.35,0.00021246,3]
[345323558,1734149455469,-500.0,0.00021246,3]
[345323559,1734149455479,-500.0,0.00021246,3]
[345323560,1734149455488,-529.9928225,0.00021246,3]
[345323561,1734149455497,-500.0,0.00021246,3]
[345323562,1734149455506,-500.0,0.00021246,3]
[345323563,1734149455516,-500.0,0.00021246,3]
[345323564,1734149455525,-500.0,0.00021246,3]
[345323565,1734149455535,-500.0,0.00021246,3]
[345323566,1734149455544,-500.0,0.00021246,3]
[345323567,1734149455553,-500.0,0.00021246,3]
[345323568,1734149455562,-462.62103962,0.00021246,3]
[345323569,1734149455576,-542.17,0.00021246,3]
[345323570,1734149455585,-542.17,0.00021246,3]
[345323571,1734149455594,-500.0,0.00021246,3]
[345323572,1734149455603,-500.0,0.00021246,3]
[345323573,1734149455613,-500.0,0.00021246,3]
[345323574,1734149455622,-531.92,0.00021246,3]
[345323575,1734149455632,-500.0,0.00021246,3]
[345323576,1734149455641,-500.0,0.00021246,3]
[345323577,1734149455651,-156.87495899,0.00021246,3]
[345323578,1734149455660,-500.0,0.00021246,3]
[345323579,1734149455670,-501.44419294,0.00021246,3]
[345323580,1734149455679,-500.0,0.00021246,3]
[345323581,1734149455689,-500.0,0.00021246,3]
[345323582,1734149455699,-500.0,0.00021246,3]
[345323583,1734149455712,-500.0,0.00021246,3]
[345323584,1734149455721,-500.0,0.00021246,3]
[345323585,1734149455731,-500.0,0.00021246,3]
[345323586,1734149455743,-500.0,0.00021246,3]
[345323587,1734149455755,-500.0,0.00021246,3]
[345323588,1734149455764,-500.0,0.00021246,3]
[345323589,1734149455775,-500.0,0.00021246,3]
[345323590,1734149455784,-500.0,0.00021246,3]
[345323591,1734149455794,-500.0,0.00021246,3]
[345323592,1734149455803,-500.0,0.00021246,3]
[345323593,1734149455812,-500.0,0.00021246,3]
[345323594,1734149455823,-1089.07,0.00021246,3]
[345323595,1734149455832,-1089.07,0.00021246,3]
[345323596,1734149455841,-500.0,0.00021246,3]
[345323597,1734149455851,-500.0,0.00021246,3]
[345323598,1734149455860,-500.0,0.00021246,3]
[345323599,1734149455870,-500.0,0.00021247,3]
[345323600,1734149455879,-500.0,0.00021247,3]
[345323601,1734149455889,-500.0,0.00021247,3]
[345323602,1734149455899,-428.62966,0.00021247,3]
[345323603,1734149455908,-990.06,0.00021247,3]
[345323604,1734149455918,-990.06,0.00021247,3]
[345323605,1734149455927,-990.06,0.00021247,3]
[345323606,1734149455936,-990.06,0.00021247,3]
[345323607,1734149455947,-990.06,0.00021247,3]
[345323608,1734149455955,-990.06,0.00021247,3]
[345323609,1734149455965,-990.06,0.00021247,3]
[345323610,1734149455974,-990.06,0.00021247,3]
[345323611,1734149455986,-990.06,0.00021247,3]
[345323612,1734149455995,-990.06,0.00021247,3]
[345323613,1734149456005,-990.06,0.00021247,3]
[345323614,1734149456014,-990.06,0.00021247,3]
[345323615,1734149456023,-990.17,0.00021247,3]
[345323616,1734149456032,-500.0,0.00021247,3]
[345323617,1734149456042,-500.0,0.00021247,3]
[345323618,1734149456051,-500.0,0.00021247,3]
[345323619,1734149456060,-500.0,0.00021247,3]
[345323620,1734149456070,-500.0,0.00021247,3]
[345323621,1734149456079,-195.99375137,0.00021247,3]
[345323622,1734149456088,-500.0,0.00021247,3]
[345323623,1734149456097,-500.0,0.00021247,3]
[345323624,1734149456106,-500.0,0.00021247,3]
[345323625,1734149456115,-152.32018763,0.00021247,3]
[345323626,1734149456124,-500.0,0.00021247,3]
[345323627,1734149456133,-500.0,0.00021247,3]
[345323628,1734149456142,-500.0,0.00021247,3]
[345323629,1734149456151,-500.0,0.00021247,3]
[345323630,1734149456160,-500.0,0.00021247,3]
[345323631,1734149456170,-500.0,0.00021247,3]
[345323632,1734149456179,-500.0,0.00021247,3]
[345323633,1734149456189,-500.0,0.00021247,3]
[345323634,1734149456198,-500.0,0.00021247,3]
[345323635,1734149456207,-500.0,0.00021247,3]
[345323636,1734149456216,-500.0,0.00021247,3]
[345323637,1734149456225,-500.0,0.00021247,3]
[345323638,1734149456234,-500.0,0.00021247,3]
[345323639,1734149456244,-500.0,0.00021247,3]
[345323640,1734149456253,-395.11,0.00021247,3]
[345323641,1734149456262,-532.44,0.00021247,3]
[345323642,1734149456271,-532.44,0.00021247,3]
[345323643,1734149456280,-532.44,0.00021247,3]
[345323644,1734149456289,-532.44,0.00021247,3]
[345323645,1734149456299,-532.44,0.00021247,3]
[345323646,1734149456308,-532.44,0.00021247,3]
[345323647,1734149456317,-1030.75,0.00021247,3]
[345323648,1734149456326,-1030.75,0.00021247,3]
[345323649,1734149456336,-1030.75,0.00021247,3]
[345323650,1734149456347,-1030.75,0.00021247,3]
[345323651,1734149456357,-1030.75,0.00021247,3]
[345323652,1734149456367,-1030.75,0.00021247,3]
[345323653,1734149456376,-1030.75,0.00021247,3]
[345323654,1734149456385,-1030.75,0.00021247,3]
[345323655,1734149456395,-1030.75,0.00021247,3]
[345323656,1734149456404,-1030.75,0.00021247,3]
[345323657,1734149456414,-1030.75,0.00021247,3]
[345323658,1734149456423,-1030.75,0.00021247,3]
[345323659,1734149456434,-1030.95153091,0.00021247,3]
[345323660,1734149456444,-500.0,0.00021247,3]
[345323661,1734149456455,-500.0,0.00021247,3]
[345323662,1734149456464,-500.0,0.00021247,3]
[345323663,1734149456473,-500.0,0.00021247,3]
[345323664,1734149456482,-500.0,0.00021247,3]
[345323665,1734149456491,-500.0,0.00021247,3]
[345323666,1734149456501,-500.0,0.00021247,3]
[345323667,1734149456510,-500.0,0.00021247,3]
[345323668,1734149456519,-500.0,0.00021247,3]
[345323669,1734149456529,-500.0,0.00021247,3]
[345323670,1734149456538,-645.56,0.00021247,3]
[345323671,1734149456547,-500.0,0.00021247,3]
[345323672,1734149456556,-500.0,0.00021247,3]
[345323673,1734149456566,-500.0,0.00021247,3]
[345323674,1734149456575,-500.0,0.00021247,3]